[Event "Early-Titled-Tuesday-Blitz-June-18-2024"]
[Site "Chess.com"]
[Date "2024.06.18"]
[Round "1"]
[White "Bkmzzzzz"]
[Black "carokannlover213"]
[Result "0-1"]
[WhiteElo "2375"]
[BlackElo "2689"]
[TimeControl "180+1"]
[EndTime "8:07:02 PDT"]
[Termination "carokannlover213 won by resignation"]

1. e4 {[%clk 0:03:00.9]} 1... e5 {[%clk 0:02:57]} 2. Nf3 {[%clk 0:02:59.2]} 2...
Nc6 {[%clk 0:02:56.6]} 3. Nc3 {[%clk 0:02:59.1]} 3... Nf6 {[%clk 0:02:54.3]} 4.
d4 {[%clk 0:02:59.1]} 4... Bb4 {[%clk 0:02:49.5]} 5. d5 {[%clk 0:02:53.2]} 5...
Ne7 {[%clk 0:02:43.1]} 6. Nxe5 {[%clk 0:02:43.4]} 6... Nxe4 {[%clk 0:02:31.9]}
7. Qg4 {[%clk 0:02:06.9]} 7... Nxc3 {[%clk 0:02:13.7]} 8. Qxg7 {[%clk
0:01:36.2]} 8... Rf8 {[%clk 0:01:38.9]} 9. a3 {[%clk 0:01:17.5]} 9... Nf5 {[%clk
0:01:35.3]} 10. Qxh7 {[%clk 0:01:07]} 10... Qf6 {[%clk 0:01:27.2]} 11. Ng4
{[%clk 0:00:46.7]} 11... Qe7+ {[%clk 0:01:27.1]} 12. Ne3 {[%clk 0:00:44.1]}
12... Nxe3 {[%clk 0:01:21.8]} 13. Bxe3 {[%clk 0:00:45]} 13... Ba5 {[%clk
0:00:58.5]} 14. Qd3 {[%clk 0:00:19.7]} 14... Nxd5+ {[%clk 0:00:55.9]} 15. b4
{[%clk 0:00:18.6]} 15... Nxe3 {[%clk 0:00:55.9]} 16. fxe3 {[%clk 0:00:13.2]}
16... Bb6 {[%clk 0:00:56.8]} 17. e4 {[%clk 0:00:13.4]} 17... d5 {[%clk
0:00:56.5]} 18. O-O-O {[%clk 0:00:12.7]} 18... Be6 {[%clk 0:00:48.7]} 19. exd5
{[%clk 0:00:12.6]} 19... O-O-O {[%clk 0:00:48.4]} 20. c4 {[%clk 0:00:12.7]}
20... Qg5+ {[%clk 0:00:46.6]} 21. Kb2 {[%clk 0:00:11.8]} 21... Bf5 {[%clk
0:00:46.8]} 22. Qd2 {[%clk 0:00:10.9]} 22... Qxd2+ {[%clk 0:00:38.3]} 23. Rxd2
{[%clk 0:00:11.8]} 23... Be3 {[%clk 0:00:38.6]} 24. Re2 {[%clk 0:00:10.4]} 24...
Bd4+ {[%clk 0:00:38.2]} 25. Kb3 {[%clk 0:00:10.4]} 25... b5 {[%clk 0:00:32.4]}
26. cxb5 {[%clk 0:00:09.1]} 26... Rxd5 {[%clk 0:00:30.8]} 27. Rd2 {[%clk
0:00:09.4]} 27... Rd6 {[%clk 0:00:27.8]} 28. Bc4 {[%clk 0:00:09.5]} 28... Kd7
{[%clk 0:00:22.1]} 29. Rhd1 {[%clk 0:00:09.4]} 29... Be5 {[%clk 0:00:21.5]} 30.
Rxd6+ {[%clk 0:00:09.4]} 30... Bxd6 {[%clk 0:00:20.5]} 31. h3 {[%clk 0:00:09.8]}
31... Be6 {[%clk 0:00:19.8]} 32. a4 {[%clk 0:00:07.7]} 32... Rg8 {[%clk
0:00:19.3]} 33. Rd2 {[%clk 0:00:07.4]} 33... Rg3+ {[%clk 0:00:19.5]} 34. Kb2
{[%clk 0:00:05.6]} 34... Bxc4 {[%clk 0:00:19.9]} 0-1

[Event "Early-Titled-Tuesday-Blitz-June-18-2024"]
[Site "Chess.com"]
[Date "2024.06.18"]
[Round "1"]
[White "Matols"]
[Black "mangochessgo"]
[Result "0-1"]
[WhiteElo "2357"]
[BlackElo "2665"]
[TimeControl "180+1"]
[EndTime "8:07:03 PDT"]
[Termination "mangochessgo won by resignation"]

1. d4 {[%clk 0:02:59.9]} 1... Nf6 {[%clk 0:02:57.4]} 2. c4 {[%clk 0:02:59.4]}
2... b6 {[%clk 0:02:57.5]} 3. Nc3 {[%clk 0:02:57.1]} 3... Bb7 {[%clk 0:02:58.2]}
4. Nf3 {[%clk 0:02:54]} 4... g6 {[%clk 0:02:58]} 5. g3 {[%clk 0:02:52.4]} 5...
Bg7 {[%clk 0:02:58.6]} 6. Bg2 {[%clk 0:02:52.9]} 6... O-O {[%clk 0:02:58.5]} 7.
O-O {[%clk 0:02:53.4]} 7... Ne4 {[%clk 0:02:55.6]} 8. Qc2 {[%clk 0:02:48.9]}
8... Nxc3 {[%clk 0:02:54.6]} 9. Qxc3 {[%clk 0:02:49.8]} 9... c5 {[%clk
0:02:54.4]} 10. Be3 {[%clk 0:02:46.5]} 10... Nc6 {[%clk 0:02:52.3]} 11. Qd2
{[%clk 0:02:44.1]} 11... d6 {[%clk 0:02:29.5]} 12. Rac1 {[%clk 0:02:31.5]} 12...
Rc8 {[%clk 0:02:28.8]} 13. d5 {[%clk 0:02:29.6]} 13... Ne5 {[%clk 0:02:12.7]}
14. Nxe5 {[%clk 0:02:28.8]} 14... Bxe5 {[%clk 0:02:13]} 15. Bh6 {[%clk
0:02:28.8]} 15... Re8 {[%clk 0:02:09]} 16. e4 {[%clk 0:02:27.5]} 16... e6 {[%clk
0:02:06.7]} 17. Rfe1 {[%clk 0:02:25.1]} 17... exd5 {[%clk 0:02:05.1]} 18. exd5
{[%clk 0:02:26]} 18... Qf6 {[%clk 0:01:57.6]} 19. b3 {[%clk 0:02:23.4]} 19...
Bb2 {[%clk 0:01:45.4]} 20. Rxe8+ {[%clk 0:02:15.3]} 20... Rxe8 {[%clk
0:01:44.3]} 21. Re1 {[%clk 0:02:15.6]} 21... Re5 {[%clk 0:01:27.3]} 22. Bf4
{[%clk 0:02:06.4]} 22... Rxe1+ {[%clk 0:01:16.8]} 23. Qxe1 {[%clk 0:02:07.3]}
23... g5 {[%clk 0:01:04]} 24. Qe8+ {[%clk 0:01:56.4]} 24... Kg7 {[%clk
0:01:03.6]} 25. Be3 {[%clk 0:01:50.6]} 25... Bd4 {[%clk 0:00:52.1]} 26. Bh3
{[%clk 0:01:28]} 26... h5 {[%clk 0:00:40]} 27. Bxd4 {[%clk 0:01:11.4]} 27...
cxd4 {[%clk 0:00:33.4]} 28. Bf1 {[%clk 0:01:06]} 28... Qf3 {[%clk 0:00:14]} 29.
Qe7 {[%clk 0:00:59.1]} 29... Bc8 {[%clk 0:00:10]} 30. Qxg5+ {[%clk 0:00:58.9]}
30... Kh7 {[%clk 0:00:08.2]} 31. Qd2 {[%clk 0:00:55.2]} 31... Bf5 {[%clk
0:00:03.3]} 32. Qxd4 {[%clk 0:00:53.3]} 32... Be4 {[%clk 0:00:02.9]} 0-1

[Event "Early-Titled-Tuesday-Blitz-June-18-2024"]
[Site "Chess.com"]
[Date "2024.06.18"]
[Round "1"]
[White "Zhigalko_Sergei"]
[Black "FerAsensio2024"]
[Result "1-0"]
[WhiteElo "3005"]
[BlackElo "2535"]
[TimeControl "180+1"]
[EndTime "8:07:04 PDT"]
[Termination "Zhigalko_Sergei won on time"]

1. e4 {[%clk 0:03:00.9]} 1... c6 {[%clk 0:03:00.1]} 2. d4 {[%clk 0:03:00]} 2...
d5 {[%clk 0:03:01]} 3. e5 {[%clk 0:03:00]} 3... c5 {[%clk 0:03:00.3]} 4. Nf3
{[%clk 0:02:59.9]} 4... Nc6 {[%clk 0:03:00.7]} 5. dxc5 {[%clk 0:02:59.7]} 5...
Bg4 {[%clk 0:03:00.9]} 6. c3 {[%clk 0:02:59.8]} 6... e6 {[%clk 0:03:00.4]} 7.
Be3 {[%clk 0:02:59.6]} 7... Nge7 {[%clk 0:02:45.2]} 8. Bb5 {[%clk 0:02:58.8]}
8... Qc7 {[%clk 0:02:28.2]} 9. Nbd2 {[%clk 0:02:53.3]} 9... a6 {[%clk
0:02:21.4]} 10. Ba4 {[%clk 0:02:47.8]} 10... Nf5 {[%clk 0:02:08.9]} 11. Bd4
{[%clk 0:02:47.7]} 11... g6 {[%clk 0:01:54.6]} 12. O-O {[%clk 0:02:44.6]} 12...
Bg7 {[%clk 0:01:54.8]} 13. h3 {[%clk 0:02:42.8]} 13... Bxf3 {[%clk 0:01:55.1]}
14. Nxf3 {[%clk 0:02:43.7]} 14... O-O {[%clk 0:01:55.3]} 15. Re1 {[%clk
0:02:37]} 15... Rfc8 {[%clk 0:01:30.1]} 16. Qd2 {[%clk 0:02:28.3]} 16... Qa5
{[%clk 0:01:16.8]} 17. Bxc6 {[%clk 0:02:25.5]} 17... bxc6 {[%clk 0:01:05.2]} 18.
b4 {[%clk 0:02:23.2]} 18... Qa4 {[%clk 0:00:53.8]} 19. Qd1 {[%clk 0:02:16.6]}
19... Qxd1 {[%clk 0:00:35.9]} 20. Rexd1 {[%clk 0:02:17.5]} 20... a5 {[%clk
0:00:31.5]} 21. a3 {[%clk 0:02:17.7]} 21... Rcb8 {[%clk 0:00:30.9]} 22. g4
{[%clk 0:02:16.9]} 22... Ne7 {[%clk 0:00:26.5]} 23. Kg2 {[%clk 0:02:11.4]} 23...
Rb7 {[%clk 0:00:26]} 24. Rab1 {[%clk 0:02:03.7]} 24... Rab8 {[%clk 0:00:25.3]}
25. Ne1 {[%clk 0:01:58.5]} 25... Nc8 {[%clk 0:00:24.6]} 26. Nd3 {[%clk
0:01:49.9]} 26... Na7 {[%clk 0:00:23.9]} 27. Ra1 {[%clk 0:01:49.2]} 27... Bf8
{[%clk 0:00:18.3]} 28. f4 {[%clk 0:01:47.4]} 28... Nb5 {[%clk 0:00:17.8]} 29.
Kf3 {[%clk 0:01:41.1]} 29... Nc7 {[%clk 0:00:15.1]} 30. Rg1 {[%clk 0:01:37.9]}
30... Ra8 {[%clk 0:00:09.5]} 31. Rab1 {[%clk 0:01:15.8]} 31... Rab8 {[%clk
0:00:09.7]} 32. h4 {[%clk 0:01:15.6]} 32... Be7 {[%clk 0:00:09.6]} 33. h5 {[%clk
0:01:15.6]} 33... Kg7 {[%clk 0:00:09.7]} 34. Rh1 {[%clk 0:01:15]} 34... Kg8
{[%clk 0:00:06.9]} 35. Rb2 {[%clk 0:01:14.4]} 35... Ne8 {[%clk 0:00:04.7]} 36.
Rbh2 {[%clk 0:01:12.3]} 36... Bd8 {[%clk 0:00:04.8]} 37. f5 {[%clk 0:00:54.4]}
37... g5 {[%clk 0:00:03.5]} 38. h6 {[%clk 0:00:43.1]} 38... f6 {[%clk
0:00:02.7]} 39. fxe6 {[%clk 0:00:41.1]} 39... fxe5 {[%clk 0:00:01.6]} 40. Nxe5
{[%clk 0:00:42]} 40... Re7 {[%clk 0:00:01.6]} 41. Nxc6 {[%clk 0:00:42.2]} 41...
Rxe6 {[%clk 0:00:01.4]} 42. Nxb8 {[%clk 0:00:42.5]} 1-0

[Event "Early-Titled-Tuesday-Blitz-June-18-2024"]
[Site "Chess.com"]
[Date "2024.06.18"]
[Round "1"]
[White "PLAYER_2006_M"]
[Black "HajiyevKanan"]
[Result "1-0"]
[WhiteElo "2949"]
[BlackElo "2519"]
[TimeControl "180+1"]
[EndTime "8:07:04 PDT"]
[Termination "PLAYER_2006_M won by resignation"]

1. e4 {[%clk 0:03:00.9]} 1... c6 {[%clk 0:02:58.2]} 2. d4 {[%clk 0:03:00]} 2...
d5 {[%clk 0:02:59.1]} 3. e5 {[%clk 0:03:00]} 3... a6 {[%clk 0:02:59.6]} 4. c3
{[%clk 0:02:54.9]} 4... Bf5 {[%clk 0:02:59.4]} 5. Ne2 {[%clk 0:02:50.8]} 5... e6
{[%clk 0:02:59.5]} 6. Ng3 {[%clk 0:02:51.2]} 6... Bg6 {[%clk 0:03:00]} 7. h4
{[%clk 0:02:50.9]} 7... h6 {[%clk 0:03:00.5]} 8. h5 {[%clk 0:02:48.9]} 8... Bh7
{[%clk 0:03:00.3]} 9. Nd2 {[%clk 0:02:48.8]} 9... c5 {[%clk 0:02:56.1]} 10. Nf3
{[%clk 0:02:48.7]} 10... Nc6 {[%clk 0:02:54.6]} 11. Bd3 {[%clk 0:02:46.9]} 11...
Bxd3 {[%clk 0:02:54]} 12. Qxd3 {[%clk 0:02:47.8]} 12... cxd4 {[%clk 0:02:54]}
13. cxd4 {[%clk 0:02:47.4]} 13... Bb4+ {[%clk 0:02:54]} 14. Bd2 {[%clk
0:02:46.5]} 14... Qa5 {[%clk 0:02:53]} 15. O-O {[%clk 0:02:22.6]} 15... Bxd2
{[%clk 0:02:45.5]} 16. Nxd2 {[%clk 0:02:23.5]} 16... Qb5 {[%clk 0:02:44.2]} 17.
Qc3 {[%clk 0:02:05.6]} 17... Qb4 {[%clk 0:02:40.3]} 18. Qxb4 {[%clk 0:02:01]}
18... Nxb4 {[%clk 0:02:39.1]} 19. Nb3 {[%clk 0:02:00.8]} 19... Ne7 {[%clk
0:02:34.5]} 20. Ne2 {[%clk 0:01:54.5]} 20... Rc8 {[%clk 0:02:31.8]} 21. Rfc1
{[%clk 0:01:50.6]} 21... Nc2 {[%clk 0:02:17.3]} 22. Rab1 {[%clk 0:01:49]} 22...
b6 {[%clk 0:02:14.1]} 23. a3 {[%clk 0:01:46.2]} 23... Kd7 {[%clk 0:02:13.8]} 24.
Nc3 {[%clk 0:01:39.7]} 24... Rxc3 {[%clk 0:01:45.9]} 25. bxc3 {[%clk 0:01:40.2]}
25... Nxa3 {[%clk 0:01:46.3]} 26. Ra1 {[%clk 0:01:40.8]} 26... Nc4 {[%clk
0:01:39.4]} 27. Rxa6 {[%clk 0:01:40.5]} 27... Nc6 {[%clk 0:01:38.1]} 28. Rca1
{[%clk 0:01:33.3]} 28... Kc7 {[%clk 0:01:37.7]} 29. R6a2 {[%clk 0:01:25.4]}
29... Kb7 {[%clk 0:01:36.9]} 30. g3 {[%clk 0:01:25.6]} 30... Rc8 {[%clk
0:01:29.3]} 31. Rb1 {[%clk 0:01:24.3]} 31... Kc7 {[%clk 0:01:26.8]} 32. Kg2
{[%clk 0:01:23.6]} 32... N6a5 {[%clk 0:01:18.2]} 33. Nd2 {[%clk 0:01:16.7]}
33... Nxd2 {[%clk 0:01:06]} 34. Rxd2 {[%clk 0:01:17.6]} 34... Nc4 {[%clk
0:01:06.4]} 35. Ra2 {[%clk 0:01:17.5]} 35... Kb7 {[%clk 0:01:03.2]} 36. g4
{[%clk 0:01:17.8]} 36... Rc7 {[%clk 0:00:53.2]} 37. Rb3 {[%clk 0:01:15.9]} 37...
Kc6 {[%clk 0:00:50.8]} 38. Ra8 {[%clk 0:01:10.5]} 38... Nd2 {[%clk 0:00:45.8]}
39. Rb2 {[%clk 0:01:08.7]} 39... Ne4 {[%clk 0:00:45.7]} 40. Rb8 {[%clk
0:01:06.8]} 40... Rb7 {[%clk 0:00:32.4]} 41. Rg8 {[%clk 0:01:01.7]} 41... f6
{[%clk 0:00:29.8]} 42. f3 {[%clk 0:00:59.6]} 42... Ng5 {[%clk 0:00:24]} 43. exf6
{[%clk 0:00:58.9]} 43... gxf6 {[%clk 0:00:22.6]} 44. Rg6 {[%clk 0:00:59.8]}
44... Rf7 {[%clk 0:00:10.5]} 45. Rxh6 {[%clk 0:00:56.3]} 45... Nh7 {[%clk
0:00:08.3]} 46. f4 {[%clk 0:00:55.5]} 46... b5 {[%clk 0:00:07.1]} 47. Ra2 {[%clk
0:00:55.2]} 47... Kb6 {[%clk 0:00:06.8]} 48. Kf3 {[%clk 0:00:55.4]} 48... b4
{[%clk 0:00:05.8]} 49. Rb2 {[%clk 0:00:53.5]} 49... Kb5 {[%clk 0:00:06.7]} 50.
Rxb4+ {[%clk 0:00:54]} 1-0

[Event "Early-Titled-Tuesday-Blitz-June-18-2024"]
[Site "Chess.com"]
[Date "2024.06.18"]
[Round "1"]
[White "BashiqChess"]
[Black "Mops_2004"]
[Result "0-1"]
[WhiteElo "2462"]
[BlackElo "2812"]
[TimeControl "180+1"]
[EndTime "8:07:05 PDT"]
[Termination "Mops_2004 won by checkmate"]

1. Nf3 {[%clk 0:02:56.5]} 1... g6 {[%clk 0:02:59.4]} 2. d4 {[%clk 0:02:52.1]}
2... Bg7 {[%clk 0:02:55.2]} 3. c4 {[%clk 0:02:46.7]} 3... d6 {[%clk 0:02:55.3]}
4. Nc3 {[%clk 0:02:46.2]} 4... e5 {[%clk 0:02:55.1]} 5. dxe5 {[%clk 0:02:43.4]}
5... dxe5 {[%clk 0:02:56]} 6. Qxd8+ {[%clk 0:02:43.2]} 6... Kxd8 {[%clk
0:02:56.9]} 7. e4 {[%clk 0:02:43.9]} 7... Nc6 {[%clk 0:02:47.8]} 8. Be3 {[%clk
0:02:35.3]} 8... Be6 {[%clk 0:02:45.4]} 9. O-O-O+ {[%clk 0:02:35.2]} 9... Kc8
{[%clk 0:02:45.6]} 10. Nd5 {[%clk 0:02:34.3]} 10... Nf6 {[%clk 0:02:41.5]} 11.
Ng5 {[%clk 0:02:33.6]} 11... Ng4 {[%clk 0:02:32.2]} 12. Bc5 {[%clk 0:02:16.7]}
12... Bh6 {[%clk 0:02:18.9]} 13. h4 {[%clk 0:02:06.4]} 13... f6 {[%clk
0:02:18.6]} 14. f3 {[%clk 0:01:24.4]} 14... fxg5 {[%clk 0:02:18]} 15. fxg4
{[%clk 0:01:24.1]} 15... gxh4+ {[%clk 0:02:18.1]} 16. Be3 {[%clk 0:01:14.3]}
16... Bxe3+ {[%clk 0:02:17.5]} 17. Nxe3 {[%clk 0:01:15.2]} 17... g5 {[%clk
0:02:18]} 18. Nf5 {[%clk 0:01:13.6]} 18... Bxf5 {[%clk 0:02:12.7]} 19. exf5
{[%clk 0:01:11.9]} 19... Nd4 {[%clk 0:02:12.1]} 20. Bd3 {[%clk 0:01:11.1]} 20...
Kd7 {[%clk 0:02:09.1]} 21. Rhe1 {[%clk 0:01:10]} 21... Rae8 {[%clk 0:02:07.3]}
22. Be4 {[%clk 0:01:10.1]} 22... c6 {[%clk 0:02:00.9]} 23. b4 {[%clk 0:01:01.7]}
23... h5 {[%clk 0:01:56.5]} 24. gxh5 {[%clk 0:00:36.3]} 24... Rxh5 {[%clk
0:01:57.4]} 25. f6 {[%clk 0:00:35.3]} 25... Rh6 {[%clk 0:01:49.5]} 26. f7 {[%clk
0:00:20.9]} 26... Rf8 {[%clk 0:01:49.5]} 27. Bf3 {[%clk 0:00:17.4]} 27... Ke6
{[%clk 0:01:28.8]} 28. Bg4+ {[%clk 0:00:15.8]} 28... Kf6 {[%clk 0:01:28.8]} 29.
Rf1+ {[%clk 0:00:08.4]} 29... Kg7 {[%clk 0:01:28.9]} 30. Rde1 {[%clk 0:00:08.6]}
30... Rf6 {[%clk 0:01:18]} 31. Rh1 {[%clk 0:00:05.2]} 31... Rf4 {[%clk
0:01:11.9]} 32. Bh5 {[%clk 0:00:02.9]} 32... e4 {[%clk 0:01:12.5]} 33. Rh3
{[%clk 0:00:02.8]} 33... Nf5 {[%clk 0:01:09.9]} 34. Rc3 {[%clk 0:00:02]} 34...
Ng3 {[%clk 0:01:09.7]} 35. Bd1 {[%clk 0:00:01.5]} 35... R8xf7 {[%clk 0:01:10]}
36. c5 {[%clk 0:00:02]} 36... Rd7 {[%clk 0:01:09]} 37. Bc2 {[%clk 0:00:02]}
37... Kf6 {[%clk 0:01:08.4]} 38. Kb2 {[%clk 0:00:02.3]} 38... Ke5 {[%clk
0:01:08.4]} 39. Rce3 {[%clk 0:00:02.6]} 39... Rd4 {[%clk 0:01:05.7]} 40. Kc3
{[%clk 0:00:03]} 40... g4 {[%clk 0:01:02.5]} 41. Bb3 {[%clk 0:00:03.3]} 41...
Nf5 {[%clk 0:01:01.4]} 42. R3e2 {[%clk 0:00:03.2]} 42... Rd3+ {[%clk 0:01:01.9]}
43. Kb2 {[%clk 0:00:03.3]} 43... Nd4 {[%clk 0:01:02.2]} 44. Re3 {[%clk
0:00:02.6]} 44... Rxe3 {[%clk 0:01:02.2]} 45. Rxe3 {[%clk 0:00:03.5]} 45... Rf2+
{[%clk 0:01:01.8]} 46. Kc3 {[%clk 0:00:03.5]} 46... Rxg2 {[%clk 0:01:01.6]} 47.
Bc4 {[%clk 0:00:02.8]} 47... h3 {[%clk 0:01:01.2]} 48. Bf1 {[%clk 0:00:01.8]}
48... Rc2# {[%clk 0:00:59.5]} 0-1

[Event "Early-Titled-Tuesday-Blitz-June-18-2024"]
[Site "Chess.com"]
[Date "2024.06.18"]
[Round "1"]
[White "Aryan_Tamadon"]
[Black "AndresDelgado77"]
[Result "1/2-1/2"]
[WhiteElo "2675"]
[BlackElo "2375"]
[TimeControl "180+1"]
[EndTime "8:07:05 PDT"]
[Termination "Game drawn by repetition"]

1. b4 {[%clk 0:03:00]} 1... e6 {[%clk 0:02:58.3]} 2. Bb2 {[%clk 0:02:59.2]} 2...
Nf6 {[%clk 0:02:52.9]} 3. a3 {[%clk 0:02:58.8]} 3... c5 {[%clk 0:02:48.6]} 4. b5
{[%clk 0:02:52.5]} 4... a6 {[%clk 0:02:39.4]} 5. e3 {[%clk 0:02:37.6]} 5... axb5
{[%clk 0:02:37.5]} 6. Bxb5 {[%clk 0:02:38.5]} 6... Be7 {[%clk 0:02:32.7]} 7. Nf3
{[%clk 0:02:37.5]} 7... O-O {[%clk 0:02:32.6]} 8. O-O {[%clk 0:02:26.7]} 8... b6
{[%clk 0:02:32.4]} 9. a4 {[%clk 0:02:13.2]} 9... Bb7 {[%clk 0:02:31.2]} 10. d3
{[%clk 0:02:00.6]} 10... d6 {[%clk 0:02:26.1]} 11. Qe2 {[%clk 0:01:40.2]} 11...
Nbd7 {[%clk 0:02:24.9]} 12. Na3 {[%clk 0:01:33.7]} 12... Nd5 {[%clk 0:02:11.2]}
13. Rfb1 {[%clk 0:01:31.2]} 13... Bf6 {[%clk 0:02:08.7]} 14. Bxf6 {[%clk
0:00:55.3]} 14... N7xf6 {[%clk 0:02:04]} 15. Qe1 {[%clk 0:00:50.3]} 15... Nc7
{[%clk 0:02:00.3]} 16. Nc4 {[%clk 0:00:46.6]} 16... Nxb5 {[%clk 0:01:50.8]} 17.
Rxb5 {[%clk 0:00:47.5]} 17... Ba6 {[%clk 0:01:27]} 18. Rb3 {[%clk 0:00:42]}
18... Bxc4 {[%clk 0:01:14]} 19. dxc4 {[%clk 0:00:42.9]} 19... Nd7 {[%clk
0:01:14.3]} 20. Qd2 {[%clk 0:00:37]} 20... Qf6 {[%clk 0:01:09.7]} 21. Rd1 {[%clk
0:00:21.6]} 21... Ne5 {[%clk 0:00:49.4]} 22. Nxe5 {[%clk 0:00:21.9]} 22... dxe5
{[%clk 0:00:36.1]} 23. Rxb6 {[%clk 0:00:22.4]} 23... Rxa4 {[%clk 0:00:34.8]} 24.
Qd6 {[%clk 0:00:20.2]} 24... Rxc4 {[%clk 0:00:29.8]} 25. Qxf8+ {[%clk
0:00:20.7]} 25... Kxf8 {[%clk 0:00:27.3]} 26. Rb8+ {[%clk 0:00:20.9]} 26... Ke7
{[%clk 0:00:25.6]} 27. Rb7+ {[%clk 0:00:18.9]} 27... Ke8 {[%clk 0:00:25.2]} 28.
Rb8+ {[%clk 0:00:14.7]} 28... Ke7 {[%clk 0:00:20.9]} 29. Rb7+ {[%clk 0:00:14.5]}
29... Ke8 {[%clk 0:00:17.8]} 30. Rb8+ {[%clk 0:00:02.5]} 30... Ke7 {[%clk
0:00:15.2]} 1/2-1/2

[Event "Early-Titled-Tuesday-Blitz-June-18-2024"]
[Site "Chess.com"]
[Date "2024.06.18"]
[Round "1"]
[White "SicilianPanzer"]
[Black "Moon_stone123"]
[Result "0-1"]
[WhiteElo "2272"]
[BlackElo "2622"]
[TimeControl "180+1"]
[EndTime "8:07:05 PDT"]
[Termination "Moon_stone123 won by resignation"]

1. d4 {[%clk 0:02:59]} 1... d5 {[%clk 0:02:59.3]} 2. c4 {[%clk 0:02:58]} 2... e6
{[%clk 0:02:59.8]} 3. Nf3 {[%clk 0:02:57.1]} 3... a6 {[%clk 0:02:55.7]} 4. cxd5
{[%clk 0:02:53.8]} 4... exd5 {[%clk 0:02:56.6]} 5. Nc3 {[%clk 0:02:53.3]} 5...
c6 {[%clk 0:02:57]} 6. Bg5 {[%clk 0:02:49.4]} 6... Be7 {[%clk 0:02:56.2]} 7.
Bxe7 {[%clk 0:02:44.1]} 7... Qxe7 {[%clk 0:02:57.1]} 8. e3 {[%clk 0:02:42.7]}
8... Nf6 {[%clk 0:02:56.9]} 9. Bd3 {[%clk 0:02:41.6]} 9... O-O {[%clk
0:02:56.7]} 10. h3 {[%clk 0:02:40]} 10... Re8 {[%clk 0:02:55.4]} 11. O-O {[%clk
0:02:38.1]} 11... Nbd7 {[%clk 0:02:55.8]} 12. Qc2 {[%clk 0:02:24.3]} 12... g6
{[%clk 0:02:54.3]} 13. Rab1 {[%clk 0:02:13.5]} 13... a5 {[%clk 0:02:46.1]} 14.
a3 {[%clk 0:02:05.2]} 14... Ne4 {[%clk 0:02:24]} 15. b4 {[%clk 0:01:42.5]} 15...
axb4 {[%clk 0:02:23.5]} 16. axb4 {[%clk 0:01:42.2]} 16... Ra3 {[%clk 0:02:20.8]}
17. Bxe4 {[%clk 0:01:38.7]} 17... dxe4 {[%clk 0:02:20.8]} 18. Nd2 {[%clk
0:01:38.4]} 18... Nf6 {[%clk 0:02:19.7]} 19. b5 {[%clk 0:01:26.6]} 19... c5
{[%clk 0:02:11.8]} 20. Nb3 {[%clk 0:01:11.9]} 20... cxd4 {[%clk 0:02:04.1]} 21.
Nxd4 {[%clk 0:01:10.9]} 21... Bd7 {[%clk 0:02:03.8]} 22. Rfc1 {[%clk 0:01:06.8]}
22... Rc8 {[%clk 0:02:01]} 23. Qb2 {[%clk 0:00:53.9]} 23... Qd6 {[%clk
0:01:48.1]} 24. b6 {[%clk 0:00:45.2]} 24... Ra5 {[%clk 0:01:18.7]} 25. Ncb5
{[%clk 0:00:35]} 25... Rxc1+ {[%clk 0:01:13.7]} 26. Rxc1 {[%clk 0:00:34]} 26...
Qxb6 {[%clk 0:01:06.4]} 27. Rb1 {[%clk 0:00:28.9]} 27... Kg7 {[%clk 0:00:57.9]}
28. Qe2 {[%clk 0:00:13.2]} 28... Nd5 {[%clk 0:00:49.9]} 29. Rb2 {[%clk
0:00:12.9]} 29... Qf6 {[%clk 0:00:32.7]} 30. Kh2 {[%clk 0:00:10.7]} 30... h5
{[%clk 0:00:31.9]} 31. g3 {[%clk 0:00:10]} 31... h4 {[%clk 0:00:31.6]} 32. Qc4
{[%clk 0:00:07.6]} 32... hxg3+ {[%clk 0:00:30.3]} 33. Kxg3 {[%clk 0:00:07.9]}
33... Qg5+ {[%clk 0:00:27.2]} 34. Kh2 {[%clk 0:00:08]} 34... Qh4 {[%clk
0:00:25]} 35. Qxd5 {[%clk 0:00:06.7]} 35... Qxh3+ {[%clk 0:00:23.6]} 0-1